[Event "Titled Tuesday Blitz March 08 Early 2022"]
[White "Batsiashvili, Nino"]
[Black "Thomas, Anysia"]
[WhiteFideId "13602993"]
[BlackFideId "670472"]
[WhiteElo "2192"]
[BlackElo "2002"]
[Result "1/2-1/2"]
[Round "05"]
[TimeControl "180+1"]
[Date "2022.03.09"]
[WhiteClock "0:00:55"]
[BlackClock "0:00:17"]

1. d4 {[%clk 0:03:00]}  Nf6 {[%clk 0:02:59]} 2. c4 {[%clk 0:03:00]}  g6 {[%clk 0:02:59]} 3. Nc3 {[%clk 0:03:01]}  d5 {[%clk 0:03:00]} 4. cxd5 {[%clk 0:03:01]}  Nxd5 {[%clk 0:03:01]} 5. e4 {[%clk 0:03:01]}  Nxc3 {[%clk 0:03:01]} 6. bxc3 {[%clk 0:03:02]}  Bg7 {[%clk 0:03:02]} 7. Nf3 {[%clk 0:03:02]}  c5 {[%clk 0:03:03]} 8. h3 {[%clk 0:03:01]}  cxd4 {[%clk 0:02:48]} 9. cxd4 {[%clk 0:03:01]}  Nc6 {[%clk 0:02:48]} 10. Be3 {[%clk 0:02:57]}  O-O {[%clk 0:02:48]} 11. Be2 {[%clk 0:02:56]}  f5 {[%clk 0:02:48]} 12. exf5 {[%clk 0:02:50]}  Qa5+ {[%clk 0:02:48]} 13. Bd2 {[%clk 0:02:49]}  Qxf5 {[%clk 0:02:48]} 14. O-O {[%clk 0:02:48]}  Be6 {[%clk 0:02:35]} 15. Be3 {[%clk 0:02:35]}  Bd5 {[%clk 0:02:35]} 16. Qb1 {[%clk 0:02:32]}  Rab8 {[%clk 0:01:27]} 17. Rd1 {[%clk 0:02:23]}  Be4 {[%clk 0:01:15]} 18. Qb3+ {[%clk 0:02:22]}  e6 {[%clk 0:01:06]} 19. Rac1 {[%clk 0:02:20]}  Bd5 {[%clk 0:01:04]} 20. Qa3 {[%clk 0:02:13]}  Rbd8 {[%clk 0:00:57]} 21. Rc5 {[%clk 0:02:07]}  Qf7 {[%clk 0:00:47]} 22. Ng5 {[%clk 0:01:59]}  Qe7 {[%clk 0:00:42]} 23. Bf3 {[%clk 0:01:54]}  h6 {[%clk 0:00:37]} 24. Bxd5 {[%clk 0:01:49]}  Rxd5 {[%clk 0:00:37]} 25. Nf3 {[%clk 0:01:47]}  Rfd8 {[%clk 0:00:18]} 26. Rc3 {[%clk 0:01:35]}  Qxa3 {[%clk 0:00:17]} 27. Rxa3 {[%clk 0:01:36]}  Nxd4 {[%clk 0:00:17]} 28. Nxd4 {[%clk 0:01:37]}  Bxd4 {[%clk 0:00:17]} 29. Bxd4 {[%clk 0:01:38]}  Rxd4 {[%clk 0:00:18]} 30. Rxd4 {[%clk 0:01:38]}  Rxd4 {[%clk 0:00:19]} 31. Rxa7 {[%clk 0:01:38]}  Rb4 {[%clk 0:00:19]} 32. Kh2 {[%clk 0:01:36]}  Kf7 {[%clk 0:00:19]} 33. Kg3 {[%clk 0:01:36]}  Kf6 {[%clk 0:00:20]} 34. a4 {[%clk 0:01:35]}  Rb3+ {[%clk 0:00:19]} 35. f3 {[%clk 0:01:35]}  Ra3 {[%clk 0:00:19]} 36. a5 {[%clk 0:01:36]}  Ra4 {[%clk 0:00:19]} 37. h4 {[%clk 0:01:35]}  h5 {[%clk 0:00:17]} 38. Kh3 {[%clk 0:01:35]}  Ra3 {[%clk 0:00:17]} 39. Kh2 {[%clk 0:01:31]}  Ra2 {[%clk 0:00:17]} 40. Kg3 {[%clk 0:01:30]}  Ra3 {[%clk 0:00:18]} 41. Kf4 {[%clk 0:01:28]}  Ra4+ {[%clk 0:00:18]} 42. Ke3 {[%clk 0:01:28]}  Ke5 {[%clk 0:00:16]} 43. g3 {[%clk 0:01:22]}  Ra3+ {[%clk 0:00:16]} 44. Ke2 {[%clk 0:01:22]}  Kf5 {[%clk 0:00:16]} 45. Rxb7 {[%clk 0:01:19]}  Rxa5 {[%clk 0:00:16]} 46. Rf7+ {[%clk 0:01:19]}  Ke5 {[%clk 0:00:15]} 47. g4 {[%clk 0:01:18]}  hxg4 {[%clk 0:00:15]} 48. fxg4 {[%clk 0:01:19]}  Ra2+ {[%clk 0:00:15]} 49. Kf3 {[%clk 0:01:20]}  Ra3+ {[%clk 0:00:15]} 50. Kg2 {[%clk 0:01:20]}  Ra2+ {[%clk 0:00:14]} 51. Kg3 {[%clk 0:01:20]}  Ra3+ {[%clk 0:00:14]} 52. Rf3 {[%clk 0:01:20]}  Ra4 {[%clk 0:00:13]} 53. g5 {[%clk 0:01:17]}  Ra7 {[%clk 0:00:07]} 54. Rf6 {[%clk 0:01:14]}  Ra3+ {[%clk 0:00:07]} 55. Kf2 {[%clk 0:01:13]}  Ra2+ {[%clk 0:00:07]} 56. Kg3 {[%clk 0:01:13]}  Ra3+ {[%clk 0:00:08]} 57. Kf2 {[%clk 0:01:10]}  Ra2+ {[%clk 0:00:08]} 58. Ke3 {[%clk 0:01:11]}  Ra3+ {[%clk 0:00:08]} 59. Kd2 {[%clk 0:01:11]}  Rh3 {[%clk 0:00:07]} 60. Rxg6 {[%clk 0:01:10]}  Rxh4 {[%clk 0:00:08]} 61. Ke3 {[%clk 0:01:10]}  Rh3+ {[%clk 0:00:08]} 62. Kf2 {[%clk 0:01:10]}  Kf5 {[%clk 0:00:08]} 63. Rg8 {[%clk 0:01:10]}  Rh2+ {[%clk 0:00:07]} 64. Kg3 {[%clk 0:01:08]}  Ra2 {[%clk 0:00:07]} 65. Kh4 {[%clk 0:01:03]}  Rh2+ {[%clk 0:00:06]} 66. Kg3 {[%clk 0:01:04]}  Rh5 {[%clk 0:00:06]} 67. g6 {[%clk 0:00:51]}  Rg5+ {[%clk 0:00:06]} 68. Kf3 {[%clk 0:00:51]}  Rxg6 {[%clk 0:00:06]} 69. Rf8+ {[%clk 0:00:50]}  Rf6 {[%clk 0:00:06]} 70. Rxf6+ {[%clk 0:00:50]}  Kxf6 {[%clk 0:00:06]} 71. Kf4 {[%clk 0:00:51]}  e5+ {[%clk 0:00:07]} 72. Ke4 {[%clk 0:00:51]}  Ke6 {[%clk 0:00:08]} 73. Ke3 {[%clk 0:00:52]}  Kf5 {[%clk 0:00:09]} 74. Kf3 {[%clk 0:00:52]}  e4+ {[%clk 0:00:09]} 75. Ke3 {[%clk 0:00:53]}  Ke5 {[%clk 0:00:10]} 76. Ke2 {[%clk 0:00:53]}  Kd4 {[%clk 0:00:11]} 77. Kd2 {[%clk 0:00:53]}  e3+ {[%clk 0:00:11]} 78. Ke2 {[%clk 0:00:54]}  Ke4 {[%clk 0:00:11]} 79. Ke1 {[%clk 0:00:54]}  Kf3 {[%clk 0:00:12]} 80. Kf1 {[%clk 0:00:54]}  Ke4 {[%clk 0:00:12]} 81. Ke2 {[%clk 0:00:55]}  Kd4 {[%clk 0:00:13]} 82. Ke1 {[%clk 0:00:54]}  Kc3 {[%clk 0:00:13]} 83. Ke2 {[%clk 0:00:54]}  Kd4 {[%clk 0:00:14]} 84. Ke1 {[%clk 0:00:55]}  Kd3 {[%clk 0:00:15]} 85. Kd1 {[%clk 0:00:55]}  e2+ {[%clk 0:00:16]} 86. Ke1 {[%clk 0:00:55]}  Ke3 {[%clk 0:00:17]} 1/2-1/2


[Site "https://www.chess.com"]

[Event "Titled Tuesday Blitz March 08 Early 2022"]
[White "Bortnyk, Olexandr"]
[Black "Matlakov, Maxim"]
[WhiteFideId "14120828"]
[BlackFideId "4168003"]
[WhiteElo "2977"]
[BlackElo "2878"]
[Result "1/2-1/2"]
[Round "05"]
[TimeControl "180+1"]
[Date "2022.03.08"]
[WhiteClock "0:00:05"]
[BlackClock "0:00:13"]

1. e4 {[%clk 0:02:59]}  c5 {[%clk 0:03:00]} 2. c3 {[%clk 0:02:59]}  Nf6 {[%clk 0:02:56]} 3. e5 {[%clk 0:02:59]}  Nd5 {[%clk 0:02:56]} 4. d4 {[%clk 0:03:00]}  cxd4 {[%clk 0:02:56]} 5. Nf3 {[%clk 0:03:01]}  e6 {[%clk 0:02:56]} 6. cxd4 {[%clk 0:03:02]}  d6 {[%clk 0:02:56]} 7. Bc4 {[%clk 0:03:02]}  Be7 {[%clk 0:02:56]} 8. O-O {[%clk 0:03:02]}  O-O {[%clk 0:02:56]} 9. Qe2 {[%clk 0:03:00]}  Nc6 {[%clk 0:02:56]} 10. Rd1 {[%clk 0:02:59]}  Qc7 {[%clk 0:02:55]} 11. Bd2 {[%clk 0:02:57]}  a6 {[%clk 0:02:45]} 12. Nc3 {[%clk 0:02:52]}  Nxc3 {[%clk 0:02:40]} 13. Bxc3 {[%clk 0:02:53]}  dxe5 {[%clk 0:02:35]} 14. dxe5 {[%clk 0:02:51]}  b5 {[%clk 0:02:35]} 15. Bd3 {[%clk 0:02:50]}  Bb7 {[%clk 0:02:35]} 16. a4 {[%clk 0:02:39]}  b4 {[%clk 0:02:26]} 17. Bd2 {[%clk 0:02:39]}  Rfd8 {[%clk 0:02:25]} 18. Rac1 {[%clk 0:02:38]}  g6 {[%clk 0:01:58]} 19. Bh6 {[%clk 0:01:34]}  Qb6 {[%clk 0:01:51]} 20. Be3 {[%clk 0:01:26]}  Qa5 {[%clk 0:01:51]} 21. Be4 {[%clk 0:01:25]}  Rac8 {[%clk 0:01:36]} 22. b3 {[%clk 0:01:20]}  Rxd1+ {[%clk 0:01:16]} 23. Rxd1 {[%clk 0:00:59]}  Qc7 {[%clk 0:01:11]} 24. h4 {[%clk 0:00:24]}  Na5 {[%clk 0:01:09]} 25. Bxb7 {[%clk 0:00:20]}  Qxb7 {[%clk 0:01:10]} 26. Rd3 {[%clk 0:00:11]}  Rc3 {[%clk 0:01:08]} 27. Nd2 {[%clk 0:00:08]}  Qc7 {[%clk 0:01:01]} 28. Bg5 {[%clk 0:00:03]}  Bxg5 {[%clk 0:00:55]} 29. hxg5 {[%clk 0:00:04]}  Kg7 {[%clk 0:00:46]} 30. Rd4 {[%clk 0:00:02]}  Nxb3 {[%clk 0:00:44]} 31. Nxb3 {[%clk 0:00:02]}  Rxb3 {[%clk 0:00:44]} 32. Rc4 {[%clk 0:00:03]}  Qe7 {[%clk 0:00:42]} 33. Qd2 {[%clk 0:00:02]}  Rb1+ {[%clk 0:00:31]} 34. Kh2 {[%clk 0:00:01]}  b3 {[%clk 0:00:31]} 35. Qf4 {[%clk 0:00:02]}  Qe8 {[%clk 0:00:17]} 36. Qf6+ {[%clk 0:00:02]}  Kg8 {[%clk 0:00:17]} 37. Rd4 {[%clk 0:00:03]}  b2 {[%clk 0:00:12]} 38. Rd8 {[%clk 0:00:03]}  Rh1+ {[%clk 0:00:11]} 39. Kg3 {[%clk 0:00:03]}  Qxd8 {[%clk 0:00:11]} 40. Qxd8+ {[%clk 0:00:04]}  Kg7 {[%clk 0:00:11]} 41. Qf6+ {[%clk 0:00:05]}  Kg8 {[%clk 0:00:12]} 42. Qd8+ {[%clk 0:00:06]}  Kg7 {[%clk 0:00:12]} 43. Qf6+ {[%clk 0:00:04]}  Kg8 {[%clk 0:00:13]} 44. Qd8+ {[%clk 0:00:05]} 1/2-1/2


[Site "https://www.chess.com"]

[Event "Titled Tuesday Blitz March 08 Early 2022"]
[White "Bulmaga, Irina"]
[Black "Petrova, Irina"]
[WhiteFideId "13903063"]
[BlackFideId "14124122"]
[WhiteElo "2184"]
[BlackElo "1993"]
[Result "1-0"]
[Round "05"]
[TimeControl "180+1"]
[Date "2022.03.09"]
[WhiteClock "0:00:47"]
[BlackClock "0:00:13"]

1. e4 {[%clk 0:03:00]}  d6 {[%clk 0:03:00]} 2. f4 {[%clk 0:02:59]}  Nf6 {[%clk 0:03:01]} 3. Nc3 {[%clk 0:02:57]}  c5 {[%clk 0:02:59]} 4. Nf3 {[%clk 0:02:56]}  g6 {[%clk 0:03:00]} 5. g3 {[%clk 0:02:56]}  Bg7 {[%clk 0:03:00]} 6. Bg2 {[%clk 0:02:57]}  O-O {[%clk 0:03:00]} 7. O-O {[%clk 0:02:57]}  Nc6 {[%clk 0:03:00]} 8. d3 {[%clk 0:02:57]}  Bd7 {[%clk 0:02:58]} 9. h3 {[%clk 0:02:55]}  Rb8 {[%clk 0:02:57]} 10. a4 {[%clk 0:02:55]}  a6 {[%clk 0:02:56]} 11. Be3 {[%clk 0:02:55]}  b5 {[%clk 0:02:54]} 12. axb5 {[%clk 0:02:55]}  axb5 {[%clk 0:02:55]} 13. Ne2 {[%clk 0:02:48]}  Ne8 {[%clk 0:02:45]} 14. c3 {[%clk 0:02:46]}  b4 {[%clk 0:02:43]} 15. d4 {[%clk 0:02:46]}  bxc3 {[%clk 0:02:40]} 16. bxc3 {[%clk 0:02:47]}  cxd4 {[%clk 0:02:30]} 17. cxd4 {[%clk 0:02:48]}  d5 {[%clk 0:02:28]} 18. e5 {[%clk 0:02:46]}  Nc7 {[%clk 0:02:24]} 19. g4 {[%clk 0:02:40]}  f6 {[%clk 0:02:12]} 20. Nd2 {[%clk 0:02:36]}  fxe5 {[%clk 0:02:11]} 21. dxe5 {[%clk 0:02:36]}  e6 {[%clk 0:02:02]} 22. Bc5 {[%clk 0:02:31]}  Rf7 {[%clk 0:01:59]} 23. Nf3 {[%clk 0:02:30]}  Nb5 {[%clk 0:01:49]} 24. Ng5 {[%clk 0:02:27]}  Nxe5 {[%clk 0:01:39]} 25. Nxf7 {[%clk 0:02:24]}  Nxf7 {[%clk 0:01:40]} 26. Nd4 {[%clk 0:02:21]}  Nc3 {[%clk 0:01:08]} 27. Qe1 {[%clk 0:02:09]}  Na4 {[%clk 0:01:01]} 28. Rxa4 {[%clk 0:01:53]}  Bxa4 {[%clk 0:01:00]} 29. Qxe6 {[%clk 0:01:51]}  Qa5 {[%clk 0:00:31]} 30. Qxd5 {[%clk 0:00:50]}  Rd8 {[%clk 0:00:21]} 31. Qc4 {[%clk 0:00:49]}  Qa8 {[%clk 0:00:13]} 32. Bxa8 {[%clk 0:00:47]} 1-0


[Site "https://www.chess.com"]

[Event "Titled Tuesday Blitz March 08 Early 2022"]
[White "Buscar, Michael"]
[Black "Shuvalova, Polina"]
[WhiteFideId "2603616"]
[BlackFideId "24171760"]
[WhiteElo "2010"]
[BlackElo "2355"]
[Result "1-0"]
[Round "05"]
[TimeControl "180+1"]
[Date "2022.03.09"]
[WhiteClock "0:00:04"]
[BlackClock "0:00:10"]

1. c4 {[%clk 0:02:54]}  e6 {[%clk 0:02:59]} 2. Nf3 {[%clk 0:02:53]}  d5 {[%clk 0:02:58]} 3. g3 {[%clk 0:02:54]}  Nf6 {[%clk 0:02:55]} 4. Bg2 {[%clk 0:02:54]}  Be7 {[%clk 0:02:56]} 5. O-O {[%clk 0:02:55]}  O-O {[%clk 0:02:56]} 6. d4 {[%clk 0:02:55]}  dxc4 {[%clk 0:02:56]} 7. Ne5 {[%clk 0:02:55]}  Nc6 {[%clk 0:02:53]} 8. Nxc6 {[%clk 0:02:55]}  bxc6 {[%clk 0:02:54]} 9. Na3 {[%clk 0:02:56]}  Bxa3 {[%clk 0:02:53]} 10. bxa3 {[%clk 0:02:57]}  Rb8 {[%clk 0:02:41]} 11. Qc2 {[%clk 0:02:54]}  Ba6 {[%clk 0:02:38]} 12. Bxc6 {[%clk 0:02:51]}  Nd5 {[%clk 0:02:34]} 13. e4 {[%clk 0:02:38]}  Ne7 {[%clk 0:02:31]} 14. Ba4 {[%clk 0:02:32]}  Qxd4 {[%clk 0:02:26]} 15. Be3 {[%clk 0:02:30]}  Qd3 {[%clk 0:02:25]} 16. Bxa7 {[%clk 0:02:29]}  Ra8 {[%clk 0:02:19]} 17. Bc5 {[%clk 0:02:27]}  Qxc2 {[%clk 0:02:01]} 18. Bxc2 {[%clk 0:02:23]}  Rfe8 {[%clk 0:01:59]} 19. Rfd1 {[%clk 0:02:14]}  Bb5 {[%clk 0:01:47]} 20. Rab1 {[%clk 0:02:03]}  Bc6 {[%clk 0:01:46]} 21. Rd4 {[%clk 0:01:49]}  Ng6 {[%clk 0:01:42]} 22. Rxc4 {[%clk 0:01:42]}  Ne5 {[%clk 0:01:42]} 23. Rc3 {[%clk 0:01:43]}  Ba4 {[%clk 0:01:26]} 24. Bb3 {[%clk 0:01:31]}  Nd7 {[%clk 0:01:16]} 25. Bb4 {[%clk 0:01:20]}  Rec8 {[%clk 0:01:05]} 26. Rbc1 {[%clk 0:01:09]}  Bxb3 {[%clk 0:01:00]} 27. axb3 {[%clk 0:01:05]}  Ra7 {[%clk 0:00:56]} 28. f4 {[%clk 0:00:58]}  h6 {[%clk 0:00:53]} 29. Bd6 {[%clk 0:00:48]}  c5 {[%clk 0:00:32]} 30. a4 {[%clk 0:00:37]}  Rb7 {[%clk 0:00:25]} 31. e5 {[%clk 0:00:26]}  Rc6 {[%clk 0:00:18]} 32. Kf2 {[%clk 0:00:20]}  Rcb6 {[%clk 0:00:18]} 33. Bxc5 {[%clk 0:00:16]}  Nxc5 {[%clk 0:00:17]} 34. Rxc5 {[%clk 0:00:15]}  Rxb3 {[%clk 0:00:18]} 35. a5 {[%clk 0:00:13]}  Ra3 {[%clk 0:00:17]} 36. R1c2 {[%clk 0:00:07]}  Ra7 {[%clk 0:00:17]} 37. Rd2 {[%clk 0:00:07]}  R7xa5 {[%clk 0:00:16]} 38. Rd8+ {[%clk 0:00:07]}  Kh7 {[%clk 0:00:15]} 39. Rxa5 {[%clk 0:00:06]}  Rxa5 {[%clk 0:00:16]} 40. Rd7 {[%clk 0:00:06]}  Ra2+ {[%clk 0:00:13]} 41. Kg1 {[%clk 0:00:06]}  Kg6 {[%clk 0:00:13]} 42. Rc7 {[%clk 0:00:06]}  Rb2 {[%clk 0:00:12]} 43. Rd7 {[%clk 0:00:06]}  h5 {[%clk 0:00:12]} 44. Rc7 {[%clk 0:00:06]}  Ra2 {[%clk 0:00:13]} 45. Rd7 {[%clk 0:00:06]}  Ra8 {[%clk 0:00:13]} 46. Kg2 {[%clk 0:00:05]}  Rf8 {[%clk 0:00:14]} 47. Kh3 {[%clk 0:00:05]}  Kf5 {[%clk 0:00:13]} 48. Rd4 {[%clk 0:00:05]}  Ra8 {[%clk 0:00:12]} 49. Kh4 {[%clk 0:00:05]}  Ra2 {[%clk 0:00:09]} 50. Kh3 {[%clk 0:00:02]}  f6 {[%clk 0:00:09]} 51. exf6 {[%clk 0:00:02]}  gxf6 {[%clk 0:00:10]} 52. Rc4 {[%clk 0:00:03]}  Ra5 {[%clk 0:00:10]} 53. Rb4 {[%clk 0:00:04]}  Rb5 {[%clk 0:00:10]} 54. Rxb5+ {[%clk 0:00:04]} 1-0


[Site "https://www.chess.com"]

[Event "Titled Tuesday Blitz March 08 Early 2022"]
[White "Caruana, Fabiano"]
[Black "Leiva, Gianmarco"]
[WhiteFideId "2020009"]
[BlackFideId "3804399"]
[WhiteElo "2985"]
[BlackElo "2709"]
[Result "1/2-1/2"]
[Round "05"]
[TimeControl "180+1"]
[Date "2022.03.08"]
[WhiteClock "0:00:09"]
[BlackClock "0:00:13"]

1. e4 {[%clk 0:03:00]}  c5 {[%clk 0:02:59]} 2. Nf3 {[%clk 0:03:01]}  d6 {[%clk 0:02:59]} 3. d4 {[%clk 0:03:00]}  cxd4 {[%clk 0:03:00]} 4. Nxd4 {[%clk 0:03:00]}  Nf6 {[%clk 0:03:00]} 5. Nc3 {[%clk 0:03:01]}  a6 {[%clk 0:03:01]} 6. Be2 {[%clk 0:03:01]}  e5 {[%clk 0:03:01]} 7. Nb3 {[%clk 0:03:01]}  Be7 {[%clk 0:03:01]} 8. O-O {[%clk 0:03:02]}  O-O {[%clk 0:03:00]} 9. a4 {[%clk 0:03:02]}  b6 {[%clk 0:02:55]} 10. Be3 {[%clk 0:02:59]}  Bb7 {[%clk 0:02:47]} 11. Bf3 {[%clk 0:02:59]}  Nbd7 {[%clk 0:02:37]} 12. Re1 {[%clk 0:03:00]}  Rc8 {[%clk 0:02:34]} 13. Nd2 {[%clk 0:03:00]}  Qc7 {[%clk 0:02:14]} 14. Nf1 {[%clk 0:02:59]}  Qb8 {[%clk 0:02:09]} 15. Ng3 {[%clk 0:02:58]}  Rfe8 {[%clk 0:02:01]} 16. Qd2 {[%clk 0:02:43]}  Bf8 {[%clk 0:01:55]} 17. Nd5 {[%clk 0:02:39]}  Nxd5 {[%clk 0:01:47]} 18. exd5 {[%clk 0:02:40]}  g6 {[%clk 0:01:48]} 19. h4 {[%clk 0:02:10]}  Qc7 {[%clk 0:01:44]} 20. c3 {[%clk 0:02:07]}  Qc4 {[%clk 0:01:45]} 21. h5 {[%clk 0:01:58]}  f5 {[%clk 0:01:32]} 22. hxg6 {[%clk 0:01:56]}  hxg6 {[%clk 0:01:32]} 23. Be2 {[%clk 0:01:53]}  Qh4 {[%clk 0:01:30]} 24. Bg5 {[%clk 0:01:51]}  Qh7 {[%clk 0:01:29]} 25. b4 {[%clk 0:01:45]}  Be7 {[%clk 0:01:09]} 26. c4 {[%clk 0:01:31]}  Kf7 {[%clk 0:00:51]} 27. Bxe7 {[%clk 0:01:06]}  Rxe7 {[%clk 0:00:46]} 28. Qg5 {[%clk 0:01:05]}  Rh8 {[%clk 0:00:39]} 29. f3 {[%clk 0:01:03]}  a5 {[%clk 0:00:21]} 30. bxa5 {[%clk 0:00:55]}  bxa5 {[%clk 0:00:22]} 31. Kf2 {[%clk 0:00:55]}  Qh4 {[%clk 0:00:18]} 32. Qxh4 {[%clk 0:00:48]}  Rxh4 {[%clk 0:00:19]} 33. Rab1 {[%clk 0:00:45]}  Ba6 {[%clk 0:00:19]} 34. Rec1 {[%clk 0:00:38]}  Nc5 {[%clk 0:00:18]} 35. Rb6 {[%clk 0:00:38]}  Rd7 {[%clk 0:00:18]} 36. Nf1 {[%clk 0:00:35]}  Rh1 {[%clk 0:00:18]} 37. Rcb1 {[%clk 0:00:27]}  Ke7 {[%clk 0:00:15]} 38. Rc6 {[%clk 0:00:24]}  Rb7 {[%clk 0:00:11]} 39. Rxb7+ {[%clk 0:00:21]}  Bxb7 {[%clk 0:00:10]} 40. Rc7+ {[%clk 0:00:21]}  Kf6 {[%clk 0:00:07]} 41. g3 {[%clk 0:00:20]}  Rh8 {[%clk 0:00:04]} 42. Ne3 {[%clk 0:00:19]}  Rc8 {[%clk 0:00:04]} 43. Rh7 {[%clk 0:00:19]}  Ba6 {[%clk 0:00:04]} 44. g4 {[%clk 0:00:19]}  f4 {[%clk 0:00:03]} 45. Nf1 {[%clk 0:00:18]}  Rb8 {[%clk 0:00:04]} 46. Ra7 {[%clk 0:00:15]}  Rb2 {[%clk 0:00:04]} 47. Ke1 {[%clk 0:00:15]}  Rb1+ {[%clk 0:00:04]} 48. Kd2 {[%clk 0:00:16]}  Rb2+ {[%clk 0:00:05]} 49. Kd1 {[%clk 0:00:16]}  Rb6 {[%clk 0:00:02]} 50. Nd2 {[%clk 0:00:15]}  e4 {[%clk 0:00:03]} 51. Nxe4+ {[%clk 0:00:15]}  Nxe4 {[%clk 0:00:03]} 52. fxe4 {[%clk 0:00:15]}  Bc8 {[%clk 0:00:03]} 53. Rc7 {[%clk 0:00:14]}  Rb8 {[%clk 0:00:01]} 54. c5 {[%clk 0:00:13]}  dxc5 {[%clk 0:00:02]} 55. Rxc5 {[%clk 0:00:13]}  Ke5 {[%clk 0:00:02]} 56. Rxa5 {[%clk 0:00:13]}  Kxe4 {[%clk 0:00:03]} 57. d6 {[%clk 0:00:13]}  f3 {[%clk 0:00:03]} 58. Bb5 {[%clk 0:00:13]}  Bxg4 {[%clk 0:00:03]} 59. Kd2 {[%clk 0:00:13]}  f2 {[%clk 0:00:04]} 60. Bd3+ {[%clk 0:00:12]}  Kf4 {[%clk 0:00:04]} 61. Ra7 {[%clk 0:00:11]}  Rd8 {[%clk 0:00:04]} 62. Rf7+ {[%clk 0:00:08]}  Ke5 {[%clk 0:00:04]} 63. Rxf2 {[%clk 0:00:07]}  Rxd6 {[%clk 0:00:05]} 64. Kc3 {[%clk 0:00:07]}  Bf5 {[%clk 0:00:04]} 65. Bb5 {[%clk 0:00:08]}  Be4 {[%clk 0:00:02]} 66. Kb4 {[%clk 0:00:08]}  g5 {[%clk 0:00:02]} 67. a5 {[%clk 0:00:08]}  g4 {[%clk 0:00:03]} 68. Rf8 {[%clk 0:00:08]}  g3 {[%clk 0:00:03]} 69. Re8+ {[%clk 0:00:09]}  Re6 {[%clk 0:00:03]} 70. Rg8 {[%clk 0:00:05]}  g2 {[%clk 0:00:03]} 71. a6 {[%clk 0:00:05]}  Rg6 {[%clk 0:00:03]} 72. Re8+ {[%clk 0:00:05]}  Kf4 {[%clk 0:00:03]} 73. a7 {[%clk 0:00:05]}  g1=Q {[%clk 0:00:02]} 74. Rxe4+ {[%clk 0:00:06]}  Kxe4 {[%clk 0:00:03]} 75. a8=Q+ {[%clk 0:00:07]}  Kf4 {[%clk 0:00:03]} 76. Qf8+ {[%clk 0:00:07]}  Kg3 {[%clk 0:00:03]} 77. Qb8+ {[%clk 0:00:07]}  Kh4 {[%clk 0:00:02]} 78. Qd8+ {[%clk 0:00:06]}  Qg5 {[%clk 0:00:02]} 79. Qxg5+ {[%clk 0:00:06]}  Kxg5 {[%clk 0:00:02]} 80. Bc4 {[%clk 0:00:07]}  Kf4 {[%clk 0:00:03]} 81. Kc5 {[%clk 0:00:08]}  Ke5 {[%clk 0:00:03]} 82. Bd3 {[%clk 0:00:08]}  Rg3 {[%clk 0:00:04]} 83. Bb5 {[%clk 0:00:09]}  Rc3+ {[%clk 0:00:05]} 84. Bc4 {[%clk 0:00:09]}  Rc2 {[%clk 0:00:05]} 85. Kb4 {[%clk 0:00:10]}  Kd4 {[%clk 0:00:05]} 86. Bb3 {[%clk 0:00:09]}  Rc8 {[%clk 0:00:06]} 87. Bf7 {[%clk 0:00:07]}  Rb8+ {[%clk 0:00:07]} 88. Ka3 {[%clk 0:00:07]}  Kc3 {[%clk 0:00:07]} 89. Ka2 {[%clk 0:00:08]}  Ra8+ {[%clk 0:00:07]} 90. Kb1 {[%clk 0:00:08]}  Rb8+ {[%clk 0:00:07]} 91. Ka1 {[%clk 0:00:08]}  Rb7 {[%clk 0:00:08]} 92. Ba2 {[%clk 0:00:08]}  Ra7 {[%clk 0:00:07]} 93. Kb1 {[%clk 0:00:08]}  Rb7+ {[%clk 0:00:08]} 94. Ka1 {[%clk 0:00:09]}  Rb6 {[%clk 0:00:08]} 95. Bb1 {[%clk 0:00:09]}  Kb3 {[%clk 0:00:09]} 96. Ba2+ {[%clk 0:00:09]}  Ka3 {[%clk 0:00:10]} 97. Bb1 {[%clk 0:00:10]}  Rd6 {[%clk 0:00:10]} 98. Ba2 {[%clk 0:00:10]}  Rd1+ {[%clk 0:00:10]} 99. Bb1 {[%clk 0:00:11]}  Rd2 {[%clk 0:00:11]} 100. Bh7 {[%clk 0:00:10]}  Kb3 {[%clk 0:00:11]} 101. Bb1 {[%clk 0:00:10]}  Kc3 {[%clk 0:00:12]} 102. Bh7 {[%clk 0:00:10]}  Rd6 {[%clk 0:00:13]} 103. Bb1 {[%clk 0:00:10]}  Rd7 {[%clk 0:00:13]} 104. Bf5 {[%clk 0:00:09]}  Kb3 {[%clk 0:00:13]} 105. Bxd7 {[%clk 0:00:09]} 1/2-1/2


[Site "https://www.chess.com"]

[Event "Titled Tuesday Blitz March 08 Early 2022"]
[White "Chernomordik, Pavel"]
[Black "Ambartsumova, Karina"]
[WhiteFideId "2804530"]
[BlackFideId "4166299"]
[WhiteElo "2249"]
[BlackElo "2262"]
[Result "0-1"]
[Round "05"]
[TimeControl "180+1"]
[Date "2022.03.09"]
[WhiteClock "0:00:02"]
[BlackClock "0:00:10"]

1. e4 {[%clk 0:03:00]}  e5 {[%clk 0:02:54]} 2. Nf3 {[%clk 0:03:00]}  Nc6 {[%clk 0:02:53]} 3. Bb5 {[%clk 0:02:59]}  a6 {[%clk 0:02:53]} 4. Ba4 {[%clk 0:02:58]}  Nf6 {[%clk 0:02:54]} 5. Qe2 {[%clk 0:02:58]}  Be7 {[%clk 0:02:50]} 6. d3 {[%clk 0:02:48]}  d6 {[%clk 0:02:41]} 7. c3 {[%clk 0:02:42]}  O-O {[%clk 0:02:40]} 8. h3 {[%clk 0:02:42]}  Bd7 {[%clk 0:02:31]} 9. Bc2 {[%clk 0:02:31]}  Re8 {[%clk 0:02:16]} 10. g4 {[%clk 0:02:27]}  Be6 {[%clk 0:02:04]} 11. Nbd2 {[%clk 0:02:25]}  d5 {[%clk 0:02:01]} 12. Nf1 {[%clk 0:02:23]}  b5 {[%clk 0:01:53]} 13. Ng3 {[%clk 0:02:21]}  Bc5 {[%clk 0:01:45]} 14. b3 {[%clk 0:01:53]}  b4 {[%clk 0:01:44]} 15. g5 {[%clk 0:01:47]}  Nd7 {[%clk 0:01:29]} 16. c4 {[%clk 0:01:39]}  dxe4 {[%clk 0:01:26]} 17. dxe4 {[%clk 0:01:32]}  Bd4 {[%clk 0:01:18]} 18. Rb1 {[%clk 0:01:30]}  Nc5 {[%clk 0:01:18]} 19. Kf1 {[%clk 0:01:29]}  Qd7 {[%clk 0:01:14]} 20. Kg2 {[%clk 0:01:27]}  a5 {[%clk 0:01:07]} 21. Kg1 {[%clk 0:01:22]}  Bxh3 {[%clk 0:00:50]} 22. Nf5 {[%clk 0:01:07]}  Bxf5 {[%clk 0:00:36]} 23. exf5 {[%clk 0:01:05]}  e4 {[%clk 0:00:37]} 24. Ne1 {[%clk 0:00:45]}  Qxf5 {[%clk 0:00:33]} 25. Be3 {[%clk 0:00:41]}  Rad8 {[%clk 0:00:32]} 26. Ng2 {[%clk 0:00:38]}  Ne5 {[%clk 0:00:30]} 27. Nh4 {[%clk 0:00:35]}  Nf3+ {[%clk 0:00:14]} 28. Nxf3 {[%clk 0:00:29]}  exf3 {[%clk 0:00:14]} 29. Bxf5 {[%clk 0:00:26]}  fxe2 {[%clk 0:00:15]} 30. Bxh7+ {[%clk 0:00:26]}  Kf8 {[%clk 0:00:15]} 31. Kg2 {[%clk 0:00:15]}  Bxe3 {[%clk 0:00:14]} 32. fxe3 {[%clk 0:00:15]}  Rxe3 {[%clk 0:00:14]} 33. Bf5 {[%clk 0:00:15]}  Ke7 {[%clk 0:00:14]} 34. Rbe1 {[%clk 0:00:12]}  Rd2 {[%clk 0:00:14]} 35. Rh7 {[%clk 0:00:10]}  Re5 {[%clk 0:00:13]} 36. Bg4 {[%clk 0:00:06]}  Rxg5 {[%clk 0:00:13]} 37. Kh3 {[%clk 0:00:07]}  Rxg4 {[%clk 0:00:11]} 38. Kxg4 {[%clk 0:00:06]}  Nd3 {[%clk 0:00:12]} 39. Rxe2+ {[%clk 0:00:04]}  Rxe2 {[%clk 0:00:13]} 40. Kf3 {[%clk 0:00:03]}  Rxa2 {[%clk 0:00:12]} 41. Ke3 {[%clk 0:00:03]}  Nc5 {[%clk 0:00:12]} 42. Rxg7 {[%clk 0:00:02]}  Nxb3 {[%clk 0:00:13]} 43. Rg5 {[%clk 0:00:02]}  Rb2 {[%clk 0:00:10]} 0-1


[Site "https://www.chess.com"]